bitfinex/quotes_ETHUSD_20250821
["timestamp","ask_amount","ask_price","bid_price","bid_amount"]
[1755742305787,28.53924692,4320.9,4319.8,0.4537]
[1755742305788,3.0,4320.8,4319.8,0.02]
[1755742305941,21.09574692,4319.9,4319.8,0.02]
[1755742306270,24.80474692,4319.9,4319.8,0.02]
[1755742306475,24.80474692,4319.9,4319.8,0.3276]
[1755742306476,3.709,4319.9,4319.8,0.3276]
[1755742306631,3.709,4319.9,4319.8,0.7613]
[1755742307561,24.91874692,4319.9,4319.8,0.02]
[1755742308162,25.35854692,4319.9,4319.8,0.02]
[1755742308331,24.91874692,4319.9,4319.8,0.02]
[1755742308729,25.35854692,4319.9,4319.8,0.02]
[1755742308966,24.91874692,4319.9,4319.2,0.4337]
[1755742309166,24.80274692,4319.9,4319.2,0.4337]
[1755742309337,24.80274692,4319.9,4318.8,0.4337]
[1755742309338,0.116,4319.3,4318.8,0.4337]
[1755742309660,3.0,4320.6,4316.1,2.892]
[1755742309661,0.116,4318.7,4318.1,0.116]
[1755742310039,0.116,4318.7,4318.6,0.3076]
[1755742310235,0.116,4318.7,4318.6,0.7413]
[1755742310435,0.4431,4320.2,4318.6,0.7413]
[1755742310436,3.593,4319.4,4318.6,0.7413]
[1755742310668,3.593,4319.4,4318.7,0.4337]
[1755742310669,0.116,4318.9,4318.7,0.4337]
[1755742310845,0.116,4318.9,4318.8,0.3076]
[1755742311047,3.593,4319.0,4318.8,0.7413]
[1755742311246,0.116,4318.9,4318.8,0.7413]
[1755742311571,0.116,4318.9,4318.8,0.3076]
[1755742311768,0.116,4318.9,4318.2,0.4337]
[1755742311973,0.116,4318.3,4318.2,0.4337]
[1755742312279,0.116,4318.3,4318.2,0.7413]
[1755742314754,3.0,4319.6,4318.2,0.7413]
[1755742314948,0.116,4318.7,4318.3,0.4337]
[1755742315249,0.116,4318.7,4318.6,0.3076]
[1755742315466,0.116,4318.7,4318.6,0.7413]
[1755742316549,0.4431,4321.9,4318.7,0.66]
[1755742316748,2.909,4321.2,4319.4,0.66]
[1755742316989,21.09574692,4321.6,4320.7,0.3076]
[1755742317190,26.66174692,4322.4,4320.7,0.3076]
[1755742317355,0.116,4321.0,4320.7,0.7413]
[1755742321396,0.116,4321.0,4320.7,1.42444439]
[1755742321566,0.116,4321.5,4320.7,22.63619131]
[1755742321757,0.116,4321.5,4320.7,22.61304692]
[1755742322094,0.116,4321.5,4320.7,24.87435161]
[1755742322304,0.116,4321.5,4320.7,30.18879139]
[1755742322457,0.02,4321.8,4320.7,30.18879139]
[1755742323363,0.02,4321.8,4320.7,30.41826185]
[1755742323866,0.02,4321.8,4320.7,34.01126185]
[1755742324069,0.02,4321.8,4320.7,6.77860469]
[1755742324282,0.02,4321.8,4320.7,3.8573]
[1755742324590,0.116,4321.3,4320.7,3.8573]
[1755742324956,0.116,4321.3,4320.7,0.8573]
[1755742325159,0.3114,4320.8,4320.3,3.593]
[1755742325560,0.3114,4320.8,4319.8,0.02]
[1755742325786,0.3114,4320.8,4319.9,3.593]
[1755742325787,0.116,4320.4,4319.9,3.593]
[1755742326055,0.3114,4320.8,4319.9,3.593]
[1755742326056,0.02,4320.8,4320.3,21.40334692]
[1755742326280,0.022,4320.8,4320.4,1.116846]
[1755742326467,0.022,4320.8,4320.7,1.0836]
[1755742326988,0.022,4320.8,4320.7,0.4236]
[1755742327290,0.3134,4320.8,4320.3,3.708]
[1755742327904,0.3134,4320.8,4320.3,0.116]
[1755742328410,0.3134,4320.8,4320.1,3.592]
[1755742328611,0.116,4320.5,4320.1,3.592]
[1755742329516,0.116,4320.5,4319.9,0.53227]
[1755742330296,0.4431,4320.6,4319.8,0.02]
[1755742330498,0.2914,4319.9,4319.8,0.02]
[1755742332682,0.116,4320.0,4319.8,0.02]
[1755742333945,0.116,4320.0,4319.9,0.3068]
[1755742334235,0.116,4320.0,4319.9,0.7411]
[1755742334440,0.116,4320.0,4319.9,0.76424868]
[1755742334637,0.022,4320.8,4320.0,0.66]
[1755742334795,0.116,4320.6,4320.1,0.14442487]
[1755742335421,0.116,4320.6,4320.1,0.57872487]
[1755742335739,0.116,4320.6,4320.2,0.4343]
[1755742336339,0.116,4320.6,4320.5,0.3068]
[1755742336538,0.116,4320.6,4320.1,0.14442487]
[1755742336698,0.2419,4320.6,4320.0,0.66]
[1755742337033,0.2419,4320.6,4319.9,0.116]
[1755742337239,0.116,4320.0,4319.6,3.592]
[1755742337939,0.116,4320.0,4319.9,0.3068]
[1755742338242,0.116,4320.6,4319.9,0.8571]
[1755742338828,0.465,4320.6,4319.9,0.44691]
[1755742339032,0.116,4320.3,4319.9,0.44691]
[1755742339547,0.116,4320.3,4320.2,0.3068]
[1755742340501,0.116,4320.3,4319.9,0.44691]
[1755742341215,0.116,4320.3,4320.2,0.3068]
[1755742341423,0.116,4320.3,4320.2,0.7411]
[1755742341937,0.116,4320.6,4320.2,0.86221576]
[1755742342141,0.116,4320.6,4320.2,0.42791576]
[1755742343019,0.116,4320.6,4320.3,0.4343]
[1755742343224,0.116,4320.6,4320.5,0.3068]
[1755742344114,0.118,4320.6,4320.5,0.3068]
[1755742344315,0.118,4320.6,4320.5,0.7411]
[1755742345733,0.118,4320.6,4320.5,0.3068]
[1755742346746,0.002,4320.6,4320.5,0.7411]
[1755742347666,0.3185,4320.6,4320.3,0.116]
[1755742347870,0.3185,4320.6,4319.8,0.02]
[1755742347871,0.116,4320.4,4319.8,0.02]
[1755742348033,0.3165,4319.9,4319.8,0.02]
[1755742348730,0.7815,4319.9,4319.8,0.02]
[1755742350730,4.3725,4319.9,4319.8,0.02]
[1755742350959,25.46824692,4319.9,4319.8,0.02]
[1755742351736,28.46824692,4319.9,4319.8,0.02]
[1755742354236,24.87724692,4319.9,4319.8,0.02]
[1755742354467,28.46824692,4319.9,4319.8,0.02]
[1755742356840,24.87724692,4319.9,4319.8,0.02]
[1755742357041,7.0235,4319.9,4319.8,0.02]
[1755742357268,0.116,4319.9,4319.8,0.02]
[1755742357443,3.707,4319.9,4319.8,0.02]
[1755742357649,4.0235,4319.9,4319.8,0.02]
[1755742357966,7.89085,4319.9,4319.8,0.02]
[1755742361246,4.29985,4319.9,4319.8,0.02]
[1755742361642,7.89085,4319.9,4319.8,0.02]
[1755742365384,3.0,4319.8,4318.3,0.001]
[1755742365555,21.09574692,4318.4,4318.3,0.001]
[1755742365881,28.11334692,4318.4,4318.3,0.001]
[1755742366380,27.80274692,4318.4,4318.3,0.001]
[1755742366980,28.11334692,4318.4,4318.3,0.001]
[1755742367180,28.54744692,4318.4,4318.3,0.001]
[1755742367356,28.94979692,4318.4,4318.3,0.001]
[1755742367871,28.51569692,4318.4,4318.3,0.001]
[1755742369171,28.94979692,4318.4,4318.3,0.001]
[1755742369374,28.51569692,4318.4,4318.3,0.001]
[1755742369973,28.94979692,4318.4,4318.3,0.001]
[1755742370592,24.92469692,4318.4,4318.3,0.001]
[1755742370795,28.51569692,4318.4,4318.3,0.001]
[1755742371488,25.35879692,4318.4,4318.3,0.001]
[1755742371650,28.94979692,4318.4,4318.3,0.001]
[1755742372974,29.60979692,4318.4,4318.3,0.001]
[1755742373173,29.60979692,4318.4,4317.8,0.02]
[1755742373476,24.21174692,4317.9,4317.8,0.02]
[1755742373653,27.80274692,4317.9,4317.8,0.02]
[1755742373850,28.11334692,4317.9,4317.8,0.02]
[1755742376305,28.54744692,4317.9,4317.8,0.02]
[1755742376478,28.11334692,4317.9,4317.8,0.02]
[1755742376681,28.51569692,4317.9,4317.8,0.02]
[1755742378188,25.94979692,4317.9,4317.8,0.02]
[1755742380467,0.51835,4317.9,4317.8,0.3185]
[1755742380673,3.591,4317.9,4317.8,0.7638]
[1755742381286,3.591,4317.9,4317.8,0.3185]
[1755742381987,3.5924,4317.9,4317.8,0.02]
[1755742382301,3.591,4317.9,4317.8,0.02]
[1755742382483,3.591,4317.9,4317.8,0.3185]
[1755742382684,21.09574692,4318.0,4317.8,0.7638]
[1755742382905,21.09574692,4318.7,4317.8,0.7638]
[1755742383077,3.0,4318.7,4317.9,0.4453]
[1755742383281,3.0,4318.7,4318.6,0.2985]
[1755742383486,6.591,4318.7,4318.6,0.2985]
[1755742385002,6.5924,4318.7,4317.8,0.02]
[1755742385302,21.09574692,4317.9,4317.8,0.02]
[1755742385604,24.68674692,4317.9,4317.8,0.02]
[1755742385902,3.591,4317.9,4317.8,0.7638]
[1755742386607,24.68674692,4317.9,4317.8,0.02]
[1755742386796,21.09574692,4317.9,4317.8,0.7638]
[1755742387107,21.09574692,4318.2,4317.8,0.7638]
[1755742387297,3.591,4318.1,4317.9,0.4453]
[1755742387622,21.09574692,4318.6,4317.8,0.02]
[1755742387802,3.591,4318.5,4318.0,0.2985]
[1755742388416,3.0,4318.7,4318.1,0.4453]
[1755742388582,3.591,4318.6,4318.1,0.4453]
[1755742388777,3.0,4319.0,4318.5,0.2985]
[1755742388981,3.591,4318.9,4318.5,0.2985]
[1755742389197,3.591,4318.9,4318.5,0.7438]
[1755742389506,3.591,4318.8,4318.6,0.4453]
[1755742389706,3.591,4318.7,4317.8,0.02]
[1755742389907,3.591,4318.6,4317.8,0.02]
[1755742390416,3.591,4318.6,4318.5,0.2985]
[1755742390589,0.116,4318.0,4317.9,0.4453]
[1755742390790,0.116,4318.0,4317.9,0.7438]
[1755742391890,21.39214692,4318.0,4317.8,0.02]
[1755742392085,3.59,4317.9,4317.8,0.02]
[1755742392287,21.09574692,4318.0,4317.8,0.3321]
[1755742392489,3.0,4318.8,4317.9,0.4394]
[1755742392687,3.59,4318.7,4317.9,0.4394]
[1755742393409,3.59,4318.7,4317.8,0.02]
[1755742393410,21.09574692,4318.5,4317.8,0.02]
[1755742393611,0.2964,4318.0,4317.8,0.02]
[1755742393909,3.59,4317.9,4317.8,0.02]
[1755742394108,7.3146,4317.9,4317.8,0.02]
[1755742394611,28.41034692,4317.9,4317.8,0.02]
[1755742395412,28.62715717,4317.9,4317.8,0.02]
[1755742395608,28.62715717,4317.9,4317.8,0.021]
[1755742397294,28.62715717,4317.9,4316.8,0.02]
[1755742397295,3.66,4317.8,4316.8,0.02]
[1755742397489,21.39214692,4316.9,4316.8,0.02]
[1755742397803,24.98214692,4316.9,4316.8,0.02]
[1755742399282,24.68574692,4316.9,4316.8,0.02]
[1755742399486,21.09574692,4316.9,4316.8,0.3321]
[1755742399707,24.68574692,4316.9,4316.8,0.3321]
[1755742399907,24.68574692,4316.9,4316.8,0.02]
[1755742400118,24.98214692,4316.9,4316.8,0.02]
[1755742400309,3.0,4318.1,4316.8,0.3321]
[1755742400507,21.09574692,4317.3,4316.8,0.7715]
[1755742400694,3.591,4317.2,4316.8,0.7715]
[1755742400906,0.4282,4318.0,4316.8,0.7715]
[1755742401102,21.09574692,4317.2,4316.8,0.7715]
[1755742401411,3.591,4317.1,4316.8,0.02]
[1755742401612,0.1574,4316.9,4316.8,0.02]
[1755742401802,3.7474,4316.9,4316.8,0.02]
[1755742402007,3.8634,4316.9,4316.8,0.02]
[1755742402209,4.2889,4316.9,4316.8,0.02]
[1755742402405,7.2889,4316.9,4316.8,0.02]
[1755742404298,6.8634,4316.9,4316.8,0.02]
[1755742404503,7.2889,4316.9,4316.8,0.02]
[1755742405019,6.8634,4316.9,4316.8,0.02]
[1755742405245,7.2889,4316.9,4316.8,0.02]
[1755742405934,3.2734,4316.9,4316.8,0.02]
[1755742406132,6.8644,4316.9,4316.8,0.02]
[1755742408328,3.2734,4316.9,4316.8,0.02]
[1755742408492,6.8644,4316.9,4316.8,0.02]
[1755742409123,3.116,4316.9,4316.8,0.3321]
[1755742409310,3.116,4316.9,4316.8,0.7715]
[1755742409311,6.707,4316.9,4316.8,0.7715]
[1755742410222,3.116,4316.9,4316.8,0.7715]
[1755742410426,6.707,4316.9,4316.8,0.7715]
[1755742410623,6.707,4316.9,4316.8,0.02]
[1755742410839,7.0034,4316.9,4316.8,0.02]
[1755742411628,7.4316,4316.9,4316.8,0.02]
[1755742413434,7.0034,4316.9,4316.8,0.02]
[1755742414736,6.707,4316.9,4316.8,0.7715]
[1755742414903,6.707,4316.9,4316.8,0.3321]
[1755742415226,7.0034,4316.9,4316.8,0.02]
[1755742415546,6.707,4316.9,4316.8,0.02]
[1755742415709,6.707,4316.9,4316.8,0.3321]
[1755742418129,6.707,4316.9,4316.8,0.7715]
[1755742418304,0.116,4316.9,4316.8,0.7715]
[1755742418723,3.706,4316.9,4316.8,0.7715]
[1755742419420,0.116,4316.9,4316.8,0.7715]
[1755742420732,3.706,4316.9,4316.8,0.3321]
[1755742422744,4.0141,4316.9,4316.8,0.02]
[1755742422929,4.4547,4316.9,4316.8,0.02]
[1755742423342,4.0141,4316.9,4316.8,0.02]
[1755742424140,3.706,4316.9,4316.8,0.3188]
[1755742424345,3.706,4316.9,4316.8,0.02]
[1755742424546,4.0141,4316.9,4316.8,0.02]
[1755742425834,4.4547,4316.9,4316.8,0.02]
[1755742426024,4.0141,4316.9,4316.8,0.02]
[1755742427446,4.4547,4316.9,4316.8,0.02]
[1755742427935,0.4241,4316.9,4316.8,0.02]
[1755742428117,4.0131,4316.9,4316.8,0.02]
[1755742428514,0.116,4316.9,4316.8,0.772]
[1755742428745,3.705,4316.9,4316.8,0.772]
[1755742429317,0.116,4316.9,4316.8,0.772]
[1755742429551,3.705,4316.9,4316.8,0.772]
[1755742429848,0.116,4316.9,4316.8,0.772]
[1755742430926,3.705,4316.9,4316.8,0.02]
[1755742431245,3.705,4316.9,4316.8,0.3188]
[1755742431246,0.116,4316.9,4316.8,0.3188]
[1755742431447,3.705,4316.9,4316.8,0.3188]
[1755742431619,3.8385,4316.9,4316.8,0.02]
[1755742431814,4.276,4316.9,4316.8,0.02]
[1755742432022,4.276,4316.9,4316.8,0.021]
[1755742432222,3.8385,4316.9,4316.8,0.021]
[1755742433815,4.276,4316.9,4316.8,0.021]
[1755742434432,3.8385,4316.9,4316.8,0.021]
[1755742435035,4.276,4316.9,4316.8,0.021]
[1755742435652,7.276,4316.9,4316.8,0.021]
[1755742435821,7.276,4316.9,4315.3,0.4532]
[1755742435822,21.09574692,4315.9,4315.3,0.4532]
[1755742436015,24.80074692,4315.9,4315.3,0.4532]
[1755742437620,25.10884692,4315.9,4314.9,0.4532]
[1755742437827,25.10884692,4315.9,4314.5,0.4532]
[1755742437828,3.0,4315.8,4314.5,0.4532]
[1755742438026,0.116,4314.9,4314.5,0.4532]
[1755742438234,0.116,4314.9,4314.8,0.3188]
[1755742438433,3.705,4314.9,4314.8,0.3188]
[1755742438852,3.705,4314.9,4314.8,0.772]
[1755742439757,0.116,4314.9,4314.8,0.772]
[1755742440968,3.705,4314.9,4314.8,0.772]
[1755742441528,0.116,4314.9,4314.8,0.772]
[1755742442255,0.116,4314.9,4314.8,0.3188]
[1755742442569,0.116,4314.9,4314.8,0.772]
[1755742442876,3.705,4314.9,4314.8,0.772]
[1755742443024,0.116,4314.9,4314.8,0.772]
[1755742444878,0.116,4314.9,4314.8,0.3188]
[1755742445375,0.116,4314.9,4314.8,0.02]
[1755742445776,0.4241,4314.9,4314.8,0.02]
[1755742446578,0.116,4314.9,4314.8,0.3188]
[1755742446970,0.4241,4314.9,4314.8,0.02]
[1755742447271,0.116,4314.9,4314.8,0.02]
[1755742447474,3.705,4314.9,4314.8,0.772]
[1755742447766,3.705,4314.9,4314.8,0.3188]
[1755742448973,0.116,4314.9,4314.8,0.3188]
[1755742449156,0.116,4314.9,4314.8,0.772]
[1755742450566,0.116,4314.9,4314.8,0.02]
[1755742450781,0.7946,4314.9,4314.8,0.02]
[1755742451968,1.2417,4314.9,4314.8,0.02]
[1755742452340,0.7946,4314.9,4314.8,0.02]
[1755742453162,4.3836,4314.9,4314.8,0.02]
[1755742453357,25.47934692,4314.9,4314.8,0.02]
[1755742453556,21.89034692,4314.9,4314.8,0.02]
[1755742453766,25.47934692,4314.9,4314.8,0.02]
[1755742455236,25.92644692,4314.9,4314.8,0.02]
[1755742456371,28.92644692,4314.9,4314.8,0.02]
[1755742457335,25.33744692,4314.9,4314.8,0.02]
[1755742457535,28.92644692,4314.9,4314.8,0.02]
[1755742459485,24.89034692,4314.9,4314.8,0.02]
[1755742459677,28.47934692,4314.9,4314.8,0.02]
[1755742459869,24.89034692,4314.9,4314.8,0.02]
[1755742460077,28.47934692,4314.9,4314.8,0.02]
[1755742461251,28.92644692,4314.9,4314.8,0.02]
[1755742461662,24.89034692,4314.9,4314.8,0.02]
[1755742461886,24.21174692,4314.9,4314.8,0.3356]
[1755742462066,0.116,4314.9,4314.8,0.3356]
[1755742462264,3.705,4314.9,4314.8,0.7987]
[1755742462463,0.116,4314.9,4314.8,0.7987]
[1755742462707,3.705,4314.9,4314.8,0.7987]
[1755742463191,0.116,4314.9,4314.8,0.7987]
[1755742463490,3.705,4314.9,4314.8,0.3356]
[1755742463654,4.4403,4314.9,4314.8,0.02]
[1755742463849,21.49994692,4314.9,4314.8,0.02]
[1755742464094,24.80074692,4314.9,4314.8,0.02]
[1755742464270,25.08894692,4314.9,4314.8,0.02]
[1755742464470,25.53604692,4314.9,4314.8,0.02]
[1755742464661,21.21174692,4314.9,4314.8,0.02]
[1755742464989,3.705,4314.9,4314.8,0.02]
[1755742465197,24.80074692,4314.9,4314.8,0.02]
[1755742465392,21.21174692,4314.9,4314.8,0.02]
[1755742465580,24.80074692,4314.9,4314.8,0.02]
[1755742466092,24.80074692,4314.9,4314.8,0.7987]
[1755742466093,0.116,4314.9,4314.8,0.7987]
[1755742466292,3.589,4315.4,4314.8,0.7987]
[1755742466495,3.589,4315.4,4314.9,0.4862755]
[1755742466696,3.589,4315.4,4315.3,0.3156]
[1755742466899,3.589,4315.4,4315.3,0.7787]
[1755742468098,0.002,4315.8,4315.3,0.7787]
[1755742468317,3.589,4315.7,4315.4,0.4631]
[1755742468468,3.589,4315.7,4315.6,0.3156]
[1755742468664,0.002,4315.8,4315.6,0.3156]
[1755742468866,3.589,4315.7,4315.6,0.3156]
[1755742469502,3.589,4315.7,4315.6,0.7787]
[1755742469901,0.002,4315.8,4315.6,0.7787]
[1755742470217,0.002,4315.8,4315.7,0.48627121]
[1755742470408,0.002,4315.8,4315.7,0.3156]
[1755742471118,0.002,4315.8,4314.8,0.4841]
[1755742471119,0.9321,4315.8,4314.8,0.4841]
[1755742471281,21.09574692,4315.5,4314.8,0.4841]
[1755742471483,21.09574692,4315.1,4314.8,0.4841]
[1755742471695,3.589,4315.0,4314.8,0.021]
[1755742472077,0.2882,4314.9,4314.8,0.021]
[1755742472507,3.589,4315.0,4314.8,0.021]
[1755742473810,0.2882,4314.9,4314.8,0.021]
[1755742475012,1.18976361,4314.9,4314.8,0.021]
[1755742476206,1.30576361,4314.9,4314.8,0.021]
[1755742477746,22.40151053,4314.9,4314.8,0.021]
[1755742479582,25.98951053,4314.9,4314.8,0.021]
[1755742480108,21.95441053,4314.9,4314.8,0.021]
[1755742480318,25.54241053,4314.9,4314.8,0.021]
[1755742480483,22.40151053,4314.9,4314.8,0.021]
[1755742480686,25.98951053,4314.9,4314.8,0.021]
[1755742481293,4.89376361,4314.9,4314.8,0.021]
[1755742481513,25.98951053,4314.9,4314.8,0.021]
[1755742483443,21.95441053,4314.9,4314.8,0.021]
[1755742483735,28.54241053,4314.9,4314.8,0.021]
[1755742486146,33.0,4314.8,4313.9,0.001]
[1755742486302,0.3029,4314.0,4313.9,0.001]
[1755742486635,7.0069,4314.0,4313.9,0.001]
[1755742486817,7.67998188,4314.0,4313.9,0.001]
[1755742487434,7.4635,4314.0,4313.9,0.001]
[1755742487635,7.91796361,4314.0,4313.9,0.001]
[1755742487937,8.63265369,4314.0,4313.9,0.001]
[1755742488433,4.54625025,4314.0,4313.9,0.001]
[1755742488602,7.46136361,4314.0,4313.9,0.001]
[1755742489412,7.91796361,4314.0,4313.9,0.001]
[1755742490232,4.32996361,4314.0,4313.9,0.001]
[1755742490434,7.91896361,4314.0,4313.9,0.001]
[1755742493646,4.32996361,4314.0,4313.9,0.001]
[1755742493937,7.91896361,4314.0,4313.9,0.001]
[1755742494606,4.32996361,4314.0,4313.9,0.001]
[1755742494808,7.91896361,4314.0,4313.9,0.001]
[1755742495435,4.32996361,4314.0,4313.9,0.001]
[1755742495741,7.91896361,4314.0,4313.9,0.001]
[1755742495935,28.25521053,4314.0,4313.9,0.306]
[1755742496127,28.25521053,4314.0,4313.9,0.001]
[1755742496324,28.83131053,4314.0,4313.9,0.001]
[1755742496561,4.0191,4313.9,4312.8,0.02]
[1755742496841,24.22084692,4312.9,4312.8,0.02]
[1755742497139,6.6,4312.9,4312.8,0.02]
[1755742497313,6.6,4312.9,4312.8,0.7574]
[1755742497513,6.6,4312.9,4312.8,0.02]
[1755742497838,7.62956361,4312.9,4312.8,0.02]
[1755742498041,7.17626361,4312.9,4312.8,0.02]
[1755742498214,6.601,4312.9,4312.8,0.7574]
[1755742498409,6.7228,4312.9,4312.8,0.02]
[1755742499236,7.1761,4312.9,4312.8,0.02]
[1755742499407,6.7228,4312.9,4312.8,0.02]
[1755742500142,6.7228,4312.9,4312.8,0.325]
[1755742500143,24.09574692,4312.9,4312.8,0.325]
[1755742500307,24.09574692,4312.9,4312.8,0.7574]
[1755742500308,3.0,4312.9,4312.8,0.7574]
[1755742500514,5.575,4313.1,4312.8,0.7574]
[1755742500749,3.602,4313.0,4312.8,0.7574]
[1755742500907,3.602,4313.0,4312.8,0.325]
[1755742501111,24.09574692,4312.9,4312.8,0.325]
[1755742501338,5.575,4313.1,4312.8,0.325]
[1755742501541,3.602,4313.0,4312.8,0.325]
[1755742501743,3.602,4313.0,4312.9,0.4324]
[1755742501941,5.575,4313.1,4312.9,0.7374]
[1755742502151,3.603,4313.0,4312.9,0.7374]
[1755742502352,3.603,4313.0,4312.9,0.305]
[1755742502927,3.0,4312.9,4312.8,0.02]
[1755742503320,6.603,4312.9,4312.8,0.7574]
[1755742504943,3.0,4312.9,4312.8,0.7574]
[1755742505154,6.602,4312.9,4312.8,0.7574]
[1755742505357,6.602,4312.9,4312.8,0.325]
[1755742505856,6.7238,4312.9,4312.8,0.02]
[1755742506032,6.7238,4312.9,4312.3,0.001]
[1755742506355,21.09574692,4312.4,4312.3,0.001]
[1755742506562,24.93884692,4312.4,4311.9,0.001]
[1755742506751,21.21174692,4312.0,4311.9,0.001]
[1755742506933,24.81374692,4312.0,4311.9,0.306]
[1755742507140,24.81374692,4312.0,4311.9,0.7384]
[1755742507628,24.81274692,4312.0,4311.9,0.7384]
[1755742508041,21.21174692,4312.0,4311.9,0.7384]
[1755742508241,24.81174692,4312.0,4311.9,0.7384]
[1755742508772,3.717,4312.0,4311.9,0.7384]
[1755742509139,24.81274692,4312.0,4311.9,0.306]
[1755742510464,3.716,4312.0,4311.9,0.7384]
[1755742510658,24.81174692,4312.0,4311.9,0.7384]
[1755742511171,0.116,4312.1,4311.9,0.7384]
[1755742511358,0.116,4312.1,4312.0,0.4579]
[1755742511575,0.116,4312.1,4312.0,0.7678]
[1755742513876,0.116,4312.1,4311.9,0.001]
[1755742514172,24.70274692,4312.0,4311.9,0.001]
[1755742515646,24.70274692,4312.0,4311.9,0.7688]
[1755742515841,0.116,4312.1,4311.9,0.7688]
[1755742516042,3.605,4312.0,4311.9,0.3109]
[1755742516256,3.605,4312.0,4311.9,0.001]
[1755742516456,3.721,4312.0,4311.9,0.001]
[1755742516972,3.721,4312.0,4311.9,0.3109]
[1755742517376,0.116,4312.0,4311.9,0.3109]
[1755742517584,24.81674692,4312.0,4311.9,0.7688]
[1755742518163,24.81574692,4312.0,4311.9,0.7688]
[1755742519084,24.81574692,4312.0,4311.9,0.3109]
[1755742519272,24.81574692,4312.0,4311.9,0.7688]
[1755742520260,21.21174692,4312.0,4311.9,0.7688]
[1755742520460,24.81374692,4312.0,4311.9,0.7688]
[1755742520662,24.81374692,4312.0,4311.9,0.3109]
[1755742520953,24.81374692,4312.0,4311.9,0.001]
[1755742520954,25.55074692,4312.0,4311.9,0.001]
[1755742521148,25.10524692,4312.0,4311.9,0.001]
[1755742521696,28.55074692,4312.0,4311.9,0.001]
[1755742522180,24.50324692,4312.0,4311.9,0.001]
[1755742522385,28.10524692,4312.0,4311.9,0.001]
[1755742522583,27.81374692,4312.0,4311.9,0.001]
[1755742522955,24.21174692,4312.0,4311.9,0.001]
[1755742523490,27.81174692,4312.0,4311.9,0.001]
[1755742523994,28.10324692,4312.0,4311.9,0.001]
[1755742525463,28.54874692,4312.0,4311.9,0.001]
[1755742527191,28.76503612,4312.0,4311.9,0.001]
[1755742527390,28.76503612,4312.0,4311.5,0.001]
[1755742527391,3.0,4311.9,4311.5,0.001]
[1755742527592,21.50324692,4311.6,4311.5,0.001]
[1755742527791,25.10024692,4311.6,4311.5,0.001]
[1755742528764,25.54574692,4311.6,4311.5,0.001]
[1755742529193,28.54574692,4311.6,4311.2,0.499]
[1755742529500,0.116,4311.3,4310.8,0.02]
[1755742529793,21.21174692,4310.9,4310.8,0.02]
[1755742529997,24.80774692,4310.9,4310.8,0.3299]
[1755742530164,24.80774692,4310.9,4310.8,0.7878]
[1755742530360,24.80774692,4310.9,4310.8,0.3299]
[1755742531493,21.21174692,4310.9,4310.8,0.3299]
[1755742531675,24.80774692,4310.9,4310.8,0.3299]
[1755742532676,24.80774692,4310.9,4310.8,0.3309]
[1755742533075,24.95184692,4310.9,4309.9,0.001]
[1755742533279,21.21174692,4310.0,4309.9,0.001]
[1755742533476,24.80574692,4310.0,4309.9,0.3109]
[1755742533677,24.80574692,4310.0,4309.9,0.7688]
[1755742534190,24.80574692,4310.0,4309.9,0.3109]
[1755742534504,24.80574692,4310.0,4309.9,0.001]
[1755742534795,24.80574692,4310.0,4308.8,0.136]
[1755742534796,24.95284692,4310.0,4309.8,0.0128]
[1755742535218,0.2631,4310.0,4309.8,0.0128]
[1755742535369,0.2631,4310.0,4309.4,0.001]
[1755742535370,3.0,4309.8,4309.4,0.001]
[1755742535569,21.24574692,4309.5,4309.4,0.001]
[1755742535807,24.96274692,4309.5,4309.4,0.001]
[1755742536480,24.96274692,4309.5,4309.4,0.3109]
[1755742536481,0.116,4309.5,4309.4,0.3109]
[1755742536813,24.81274692,4309.5,4309.4,0.7688]
[1755742536988,24.81274692,4309.5,4309.4,0.001]
[1755742537293,21.21174692,4309.5,4309.4,0.001]
[1755742537462,21.21174692,4309.5,4308.8,0.02]
[1755742537463,25.54874692,4309.5,4308.8,0.02]
[1755742537664,21.21174692,4308.9,4308.8,0.02]
[1755742537919,24.81374692,4308.9,4308.8,0.02]
[1755742538070,24.81374692,4308.9,4308.8,0.7878]
[1755742538071,0.116,4308.9,4308.8,0.7878]
[1755742538268,3.718,4308.9,4308.8,0.7878]
[1755742538506,3.718,4308.9,4308.8,0.3299]
[1755742538705,3.718,4308.9,4308.8,0.7878]
[1755742539005,0.116,4308.9,4308.8,0.7878]
[1755742539302,21.09574692,4309.8,4308.8,0.7878]
[1755742539471,0.116,4309.6,4308.9,0.4579]
[1755742539673,0.116,4309.6,4309.5,0.3099]
[1755742539881,0.116,4309.6,4309.5,0.7678]
[1755742540092,0.116,4309.6,4309.0,0.02320724]
[1755742540308,0.116,4309.6,4308.8,0.136]
[1755742540309,21.09574692,4309.4,4309.1,0.4579]